fUST/lending_fUST_20250209
["ID","MTS","AMOUNT","RATE_DAILY","PERIOD"]
[352324755,1739042732741,-500.0,0.00010958,2]
[352324756,1739042732762,-500.0,0.00010958,2]
[352324757,1739042732784,-512.38737142,0.00010958,2]
[352324758,1739042732806,-500.0,0.00010958,2]
[352324759,1739042732828,-534.15,0.00010958,2]
[352324760,1739042732849,-500.0,0.00010958,2]
[352324761,1739042732870,-500.0,0.00010958,2]
[352324762,1739042732892,-500.0,0.00010958,2]
[352324763,1739042732913,-500.0,0.00010958,2]
[352324764,1739042732934,-500.0,0.00010958,2]
[352324765,1739042732958,-500.0,0.00010958,2]
[352324766,1739042732981,-500.0,0.00010958,2]
[352324767,1739042733001,-373.93243416,0.00010958,2]
[352324768,1739042733023,-402.56008187,0.00010958,2]
[352324769,1739042733044,-500.0,0.00010958,2]
[352324770,1739042733067,-500.0,0.00010958,2]
[352324771,1739042733090,-500.0,0.00010958,2]
[352324772,1739042733111,-500.0,0.00010958,2]
[352324773,1739042733132,-240.73723363,0.00010958,2]
[352324774,1739042733333,-506.24447656,0.00010958,2]
[352324775,1739042733357,-500.0,0.00010958,2]
[352324776,1739042733380,-500.0,0.00010958,2]
[352324777,1739042733404,-500.0,0.00010958,2]
[352324778,1739042733428,-500.0,0.00010958,2]
[352324779,1739042733450,-500.0,0.00010958,2]
[352324780,1739042733473,-500.0,0.00010958,2]
[352324781,1739042733496,-182.68249531,0.00010958,2]
[352324782,1739042733517,-500.0,0.00010958,2]
[352324783,1739042733539,-500.0,0.00010958,2]
[352324784,1739042733561,-494.39543371,0.00010958,2]
[352324785,1739042733584,-500.0,0.00010958,2]
[352324786,1739042733607,-500.0,0.00010958,2]
[352324787,1739042733628,-500.0,0.00010958,2]
[352324788,1739042733649,-500.0,0.00010958,2]
[352324789,1739042733671,-500.0,0.00010958,2]
[352324790,1739042733692,-500.0,0.00010958,2]
[352324791,1739042733715,-500.0,0.00010958,2]
[352324792,1739042733740,-500.0,0.00010958,2]
[352324793,1739042733763,-500.0,0.00010958,2]
[352324794,1739042733784,-500.0,0.00010958,2]
[352324795,1739042733806,-500.0,0.00010958,2]
[352324796,1739042733829,-500.0,0.00010958,2]
[352324797,1739042733851,-189.03119929,0.00010958,2]
[352324798,1739042733873,-500.0,0.00010958,2]
[352324799,1739042733894,-500.0,0.00010958,2]
[352324800,1739042733916,-500.0,0.00010958,2]
[352324801,1739042733938,-500.0,0.00010958,2]
[352324802,1739042733961,-500.0,0.00010958,2]
[352324803,1739042733983,-500.0,0.00010958,2]
[352324804,1739042734005,-500.0,0.00010958,2]
[352324805,1739042734027,-500.0,0.00010958,2]
[352324806,1739042734049,-500.0,0.00010958,2]
[352324807,1739042734071,-797.06,0.00010958,2]
[352324808,1739042734092,-500.0,0.00010958,2]
[352324809,1739042734113,-500.0,0.00010958,2]
[352324810,1739042734134,-500.0,0.00010958,2]
[352324811,1739042734157,-831.62,0.00010958,2]
[352324812,1739042734179,-500.0,0.00010958,2]
[352324813,1739042734200,-500.0,0.00010958,2]
[352324814,1739042734223,-772.15,0.00010958,2]
[352324815,1739042734250,-500.0,0.00010958,2]
[352324816,1739042734273,-1471.92,0.00010958,2]
[352324817,1739042734296,-500.0,0.00010958,2]
[352324818,1739042734319,-500.0,0.00010958,2]
[352324819,1739042734342,-694.4,0.00010958,2]
[352324820,1739042734364,-500.0,0.00010958,2]
[352324821,1739042734386,-500.0,0.00010958,2]
[352324822,1739042734410,-500.0,0.00010958,2]
[352324823,1739042734432,-500.0,0.00010958,2]
[352324824,1739042734455,-500.0,0.00010958,2]
[352324825,1739042734478,-503.71208199,0.00010958,2]
[352324826,1739042734501,-6398.36,0.00010958,2]
[352324827,1739042734524,-1466.98,0.00010958,2]
[352324828,1739042734545,-500.0,0.00010958,2]
[352324829,1739042734566,-500.0,0.00010958,2]
[352324830,1739042734587,-641.03,0.00010958,2]
[352324831,1739042734608,-500.0,0.00010958,2]
[352324832,1739042734629,-500.0,0.00010958,2]
[352324833,1739042734652,-506.57,0.00010958,2]
[352324834,1739042734672,-500.0,0.00010958,2]
[352324835,1739042734693,-500.0,0.00010958,2]
[352324836,1739042734714,-500.0,0.00010958,2]
[352324837,1739042734736,-500.0,0.00010958,2]
[352324838,1739042734759,-1139.56,0.00010958,2]
[352324839,1739042734781,-500.0,0.00010958,2]
[352324840,1739042734803,-735.61,0.00010958,2]
[352324841,1739042734824,-500.0,0.00010958,2]
[352324842,1739042734846,-500.0,0.00010958,2]
[352324843,1739042734869,-2883.21,0.00010958,2]
[352324844,1739042734891,-576.07,0.00010958,2]
[352324845,1739042734912,-500.0,0.00010958,2]
[352324846,1739042734933,-738.94,0.00010958,2]
[352324847,1739042734955,-500.0,0.00010958,2]
[352324848,1739042734976,-639.99,0.00010958,2]
[352324849,1739042734996,-500.0,0.00010958,2]
[352324850,1739042735018,-632.73,0.00010958,2]
[352324851,1739042735038,-500.0,0.00010958,2]
[352324852,1739042735060,-500.0,0.00010958,2]
[352324853,1739042735080,-18072.88,0.00010958,2]
[352324854,1739042735102,-2010.75,0.00010958,2]
[352324855,1739042735122,-500.0,0.00010958,2]
[352324856,1739042735143,-500.0,0.00010958,2]
[352324857,1739042735165,-829.59,0.00010958,2]
[352324858,1739042735186,-500.0,0.00010958,2]
[352324859,1739042735207,-500.0,0.00010958,2]
[352324860,1739042735229,-921.68,0.00010958,2]
[352324861,1739042735253,-982.79,0.00010958,2]
[352324862,1739042735275,-635.18,0.00010958,2]
[352324863,1739042735297,-500.0,0.00010958,2]
[352324864,1739042735319,-785.8,0.00010958,2]
[352324865,1739042735344,-500.0,0.00010958,2]
[352324866,1739042735365,-500.0,0.00010958,2]
[352324867,1739042735389,-625.84,0.00010958,2]
[352324868,1739042735410,-500.0,0.00010958,2]
[352324869,1739042735430,-500.0,0.00010958,2]
[352324870,1739042735451,-500.0,0.00010958,2]
[352324871,1739042735472,-500.0,0.00010958,2]
[352324872,1739042735494,-7273.63,0.00010958,2]
[352324873,1739042735516,-500.0,0.00010958,2]
[352324874,1739042735538,-500.0,0.00010958,2]
[352324875,1739042735559,-682.21,0.00010958,2]
[352324876,1739042735579,-500.0,0.00010958,2]
[352324877,1739042735601,-500.0,0.00010958,2]
[352324878,1739042735622,-913.53,0.00010958,2]
[352324879,1739042735644,-718.27,0.00010958,2]
[352324880,1739042735664,-2511.49,0.00010958,2]
[352324881,1739042735685,-500.0,0.00010958,2]
[352324882,1739042735705,-500.0,0.00010958,2]
[352324883,1739042735726,-500.0,0.00010958,2]
[352324884,1739042735746,-500.0,0.00010958,2]
[352324885,1739042735767,-500.0,0.00010958,2]
[352324886,1739042735787,-500.0,0.00010958,2]
[352324887,1739042735809,-500.0,0.00010958,2]
[352324888,1739042735829,-189.21202171,0.00010958,2]
[352324889,1739042735850,-500.43244295,0.00010958,2]
[352324890,1739042735872,-589.61,0.00010958,2]
[352324891,1739042735893,-500.0,0.00010958,2]
[352324892,1739042735915,-500.0,0.00010958,2]
[352324893,1739042735937,-1746.47,0.00010958,2]
[352324894,1739042735959,-500.0,0.00010958,2]
[352324895,1739042735979,-500.0,0.00010958,2]
[352324896,1739042735999,-501.09861505,0.00010958,2]
[352324897,1739042736019,-500.0,0.00010958,2]
[352324898,1739042736039,-500.0,0.00010958,2]
[352324899,1739042736059,-500.0,0.00010958,2]
[352324900,1739042736080,-687.76,0.00010958,2]
[352324901,1739042736100,-500.0,0.00010958,2]
[352324902,1739042736120,-500.0,0.00010958,2]
[352324903,1739042736141,-500.0,0.00010958,2]
[352324904,1739042736162,-510.90131772,0.00010958,2]
[352324905,1739042736182,-500.0,0.00010958,2]
[352324906,1739042736205,-500.0,0.00010958,2]
[352324907,1739042736227,-500.0,0.00010958,2]
[352324908,1739042736252,-500.0,0.00010958,2]
[352324909,1739042736273,-500.0,0.00010958,2]
[352324910,1739042736296,-500.0,0.00010958,2]
[352324911,1739042736319,-500.0,0.00010958,2]
[352324912,1739042736341,-500.0,0.00010958,2]
[352324913,1739042736363,-500.0,0.00010958,2]
[352324914,1739042736383,-500.0,0.00010958,2]
[352324915,1739042736405,-500.0,0.00010958,2]
[352324916,1739042736426,-500.0,0.00010958,2]
[352324917,1739042736447,-500.0,0.00010958,2]
[352324918,1739042736469,-495.75833282,0.00010958,2]
[352324919,1739042736492,-500.0,0.00010958,2]
[352324920,1739042736514,-500.0,0.00010958,2]
[352324921,1739042736535,-500.0,0.00010958,2]
[352324922,1739042736558,-3884.79,0.00010958,2]
[352324923,1739042736579,-572.73824076,0.00010958,2]
[352324924,1739042736600,-1419.64,0.00010958,2]
[352324925,1739042736622,-211.83939095,0.00010958,2]
[352324926,1739042736644,-1614.57,0.00010958,2]
[352324927,1739042736666,-151.0,0.00011,2]
[352324928,1739042736688,-500.0,0.00011095,2]
[352324929,1739042736711,-630.21802614,0.00011095,2]
[352324930,1739042736733,-500.0,0.00011095,2]
[352324931,1739042736754,-210.94,0.00011095,2]
[352324932,1739042736776,-500.0,0.00011095,2]
[352324933,1739042736797,-500.0,0.00011095,2]
[352324934,1739042736819,-500.0,0.00011095,2]
[352324935,1739042736840,-500.0,0.00011095,2]
[352324936,1739042736862,-500.0,0.00011095,2]
[352324937,1739042736883,-500.0,0.00011095,2]
[352324938,1739042736905,-631.03,0.00011095,2]
[352324939,1739042736926,-500.0,0.00011095,2]
[352324940,1739042736948,-500.0,0.00011095,2]
[352324941,1739042736970,-534.15,0.00011095,2]
[352324942,1739042736991,-500.0,0.00011095,2]
[352324943,1739042737013,-646.93492618,0.00011095,2]
[352324944,1739042737033,-500.0,0.00011095,2]
[352324945,1739042737055,-500.0,0.00011095,2]
[352324946,1739042737222,-500.0,0.00011095,2]
[352324947,1739042737251,-500.0,0.00011095,2]
[352324948,1739042737274,-526.8473696,0.00011095,2]
[352324949,1739042737297,-500.0,0.00011095,2]
[352324950,1739042737318,-797.06,0.00011095,2]
[352324951,1739042737341,-500.0,0.00011095,2]
[352324952,1739042737362,-831.62,0.00011095,2]
[352324953,1739042737384,-772.15,0.00011095,2]
[352324954,1739042737407,-1471.92,0.00011095,2]
[352324955,1739042737432,-500.0,0.00011095,2]
[352324956,1739042737458,-694.4,0.00011095,2]
[352324957,1739042737481,-500.0,0.00011095,2]
[352324958,1739042737505,-500.0,0.00011095,2]
[352324959,1739042737528,-500.0,0.00011095,2]
[352324960,1739042737551,-6398.36,0.00011095,2]
[352324961,1739042737573,-1466.98,0.00011095,2]
[352324962,1739042737595,-500.0,0.00011095,2]
[352324963,1739042737615,-641.03,0.00011095,2]
[352324964,1739042737636,-506.57,0.00011095,2]
[352324965,1739042737658,-500.0,0.00011095,2]
[352324966,1739042737681,-1139.56,0.00011095,2]
[352324967,1739042737704,-500.0,0.00011095,2]
[352324968,1739042737725,-735.61,0.00011095,2]
[352324969,1739042737748,-500.0,0.00011095,2]
[352324970,1739042737771,-2883.21,0.00011095,2]
[352324971,1739042737793,-576.07,0.00011095,2]
[352324972,1739042737815,-738.94,0.00011095,2]
[352324973,1739042737837,-500.0,0.00011095,2]
[352324974,1739042737858,-639.99,0.00011095,2]
[352324975,1739042737880,-632.73,0.00011095,2]
[352324976,1739042737903,-500.0,0.00011095,2]
[352324977,1739042737925,-18072.88,0.00011095,2]
[352324978,1739042737948,-2010.75,0.00011095,2]
[352324979,1739042737972,-829.59,0.00011095,2]
[352324980,1739042737994,-500.0,0.00011095,2]
[352324981,1739042738016,-921.68,0.00011095,2]
[352324982,1739042738038,-982.79,0.00011095,2]
[352324983,1739042738059,-635.18,0.00011095,2]
[352324984,1739042738082,-67.09017002,0.00011095,2]
[352325090,1739043038481,-300.0,0.00010957,2]
[352325091,1739043038491,-500.0,0.00010958,2]
[352325092,1739043038504,-500.0,0.00010958,2]
[352325093,1739043038515,-500.0,0.00010958,2]
[352325094,1739043038524,-500.0,0.00010958,2]
[352325095,1739043038534,-500.0,0.00010958,2]
[352325096,1739043038543,-500.0,0.00010958,2]
[352325097,1739043038553,-500.0,0.00010958,2]
[352325098,1739043038563,-500.0,0.00010958,2]
[352325099,1739043038572,-500.0,0.00010958,2]
[352325100,1739043038582,-500.0,0.00010958,2]
[352325101,1739043038592,-510.63808648,0.00010958,2]
[352325102,1739043038601,-500.0,0.00010958,2]
[352325103,1739043038610,-500.0,0.00010958,2]
[352325104,1739043038619,-500.0,0.00010958,2]
[352325105,1739043038628,-500.0,0.00010958,2]
[352325106,1739043038638,-586.66,0.00010958,2]
[352325107,1739043038648,-500.0,0.00010958,2]
[352325108,1739043038657,-578.44,0.00010958,2]
[352325109,1739043038667,-500.0,0.00010958,2]
[352325110,1739043038676,-500.0,0.00010958,2]
[352325111,1739043038685,-500.0,0.00010958,2]
[352325112,1739043038694,-500.0,0.00010958,2]
[352325113,1739043038705,-500.0,0.00010958,2]
[352325114,1739043038714,-17352.59,0.00010958,2]
[352325115,1739043038723,-214.37147578,0.00010958,2]
[352325116,1739043038732,-296.721,0.00010958,2]
[352325117,1739043038741,-500.0,0.00010958,2]
[352325118,1739043038751,-500.0,0.00010958,2]
[352325119,1739043038760,-500.0,0.00010958,2]
[352325120,1739043038769,-6970.56,0.00010958,2]
[352325121,1739043038779,-760.46,0.00010958,2]
[352325122,1739043038788,-500.0,0.00010958,2]
[352325123,1739043038798,-500.0,0.00010958,2]
[352325124,1739043038807,-900.89,0.00010958,2]
[352325125,1739043038816,-500.0,0.00010958,2]
[352325126,1739043038826,-500.0,0.00010958,2]
[352325127,1739043038835,-500.0,0.00010958,2]
[352325128,1739043038844,-599.77,0.00010958,2]
[352325129,1739043038853,-518.08842495,0.00010958,2]
[352325130,1739043038863,-688.34,0.00010958,2]
[352325131,1739043038872,-500.0,0.00010958,2]
[352325132,1739043038881,-302.93036821,0.00010958,2]
[352325133,1739043038890,-500.0,0.00010958,2]
[352325134,1739043038899,-500.0,0.00010958,2]
[352325135,1739043038909,-580.0,0.00010958,2]
[352325136,1739043038918,-500.0,0.00010958,2]
[352325137,1739043038928,-500.0,0.00010958,2]
[352325138,1739043038937,-500.0,0.00010958,2]
[352325139,1739043038946,-2406.85,0.00010958,2]
[352325140,1739043038958,-500.0,0.00010958,2]
[352325141,1739043038967,-252.42705189,0.00010958,2]
[352325142,1739043038977,-1843.18,0.00010958,2]
[352325143,1739043038986,-500.0,0.00010958,2]
[352325144,1739043038995,-500.0,0.00010958,2]
[352325145,1739043039005,-844.87,0.00010958,2]
[352325146,1739043039015,-500.0,0.00010958,2]
[352325147,1739043039026,-500.0,0.00010958,2]
[352325148,1739043039036,-500.0,0.00010958,2]
[352325149,1739043039045,-750.26,0.00010958,2]
[352325150,1739043039055,-500.0,0.00010958,2]
[352325151,1739043039064,-500.0,0.00010958,2]
[352325152,1739043039074,-500.0,0.00010958,2]
[352325153,1739043039083,-653.79,0.00010958,2]
[352325154,1739043039093,-500.0,0.00010958,2]
[352325155,1739043039102,-500.0,0.00010958,2]
[352325156,1739043039112,-875.46,0.00010958,2]
[352325157,1739043039122,-500.0,0.00010958,2]
[352325158,1739043039133,-500.0,0.00010958,2]
[352325159,1739043039143,-500.0,0.00010958,2]
[352325160,1739043039152,-501.88317149,0.00010958,2]
[352325161,1739043039161,-500.0,0.00010958,2]
[352325162,1739043039171,-500.0,0.00010958,2]
[352325163,1739043039180,-500.0,0.00010958,2]
[352325164,1739043039189,-1360.49,0.00010958,2]
[352325165,1739043039199,-500.0,0.00010958,2]
[352325166,1739043039208,-378.39249092,0.00010958,2]
[352325167,1739043039218,-500.0,0.00010958,2]
[352325168,1739043039228,-500.0,0.00010958,2]
[352325169,1739043039237,-1673.7,0.00010958,2]
[352325170,1739043039246,-524.39256228,0.00010958,2]
[352325171,1739043039255,-3722.93,0.00010958,2]
[352325172,1739043039265,-1344.73,0.00010958,2]
[352325173,1739043039274,-500.0,0.00010958,2]
[352325174,1739043039284,-500.0,0.00010958,2]
[352325175,1739043039293,-5376.4,0.00010958,2]
[352325176,1739043039302,-707.8,0.00010958,2]
[352325177,1739043039311,-500.0,0.00010958,2]
[352325178,1739043039320,-500.0,0.00010958,2]
[352325179,1739043039330,-500.0,0.00010958,2]
[352325180,1739043039339,-500.0,0.00010958,2]
[352325181,1739043039351,-659.1,0.00010958,2]
[352325182,1739043039360,-500.0,0.00010958,2]
[352325183,1739043039369,-636.53,0.00010958,2]
[352325184,1739043039379,-500.0,0.00010958,2]
[352325185,1739043039390,-674.31,0.00010958,2]
[352325186,1739043039399,-500.0,0.00010958,2]
[352325187,1739043039408,-1349.26,0.00010958,2]
[352325188,1739043039417,-500.0,0.00010958,2]
[352325189,1739043039427,-500.0,0.00010958,2]
[352325190,1739043039437,-500.0,0.00010958,2]
[352325191,1739043039446,-500.0,0.00010958,2]
[352325192,1739043039457,-500.0,0.00010958,2]
[352325193,1739043039466,-500.0,0.00010958,2]
[352325194,1739043039475,-500.0,0.00010958,2]
[352325195,1739043039485,-587.61,0.00010958,2]
[352325196,1739043039494,-500.0,0.00010958,2]
[352325197,1739043039503,-500.0,0.00010958,2]
[352325198,1739043039513,-1044.6,0.00010958,2]
[352325199,1739043039524,-500.0,0.00010958,2]
[352325200,1739043039534,-2642.94,0.00010958,2]
[352325201,1739043039543,-500.0,0.00010958,2]
[352325202,1739043039553,-1547.29,0.00010958,2]
[352325203,1739043039562,-500.0,0.00010958,2]
[352325204,1739043039571,-300.684998,0.00010958,2]
[352325205,1739043039581,-500.0,0.00010958,2]
[352325206,1739043039590,-500.0,0.00010958,2]
[352325207,1739043039599,-500.0,0.00011095,2]
[352325208,1739043039609,-500.0,0.00011095,2]
[352325209,1739043039618,-500.0,0.00011095,2]
[352325210,1739043039628,-500.0,0.00011095,2]
[352325211,1739043039637,-500.0,0.00011095,2]
[352325212,1739043039646,-589.61,0.00011095,2]
[352325213,1739043039656,-500.0,0.00011095,2]
[352325214,1739043039665,-500.0,0.00011095,2]
[352325215,1739043039674,-500.0,0.00011095,2]
[352325216,1739043039684,-500.0,0.00011095,2]
[352325217,1739043039693,-500.0,0.00011095,2]
[352325218,1739043039703,-586.66,0.00011095,2]
[352325219,1739043039713,-578.44,0.00011095,2]
[352325220,1739043039722,-500.0,0.00011095,2]
[352325221,1739043039731,-10841.19185358,0.00011095,2]
[352325222,1739043039745,-6511.39814642,0.00011095,2]
[352325223,1739043039754,-500.0,0.00011095,2]
[352325224,1739043039763,-760.46,0.00011095,2]
[352325225,1739043039772,-4349.00451985,0.00011095,2]
[352325246,1739043042071,-2621.55548015,0.00011095,2]
[352325247,1739043042081,-900.89,0.00011095,2]
[352325248,1739043042091,-500.0,0.00011095,2]
[352325249,1739043042100,-599.77,0.00011095,2]
[352325250,1739043042110,-688.34,0.00011095,2]
[352325251,1739043042120,-500.0,0.00011095,2]
[352325252,1739043042130,-580.0,0.00011095,2]
[352325253,1739043042139,-500.0,0.00011095,2]
[352325254,1739043042149,-2406.85,0.00011095,2]
[352325255,1739043042159,-500.0,0.00011095,2]
[352325256,1739043042168,-1843.18,0.00011095,2]
[352325257,1739043042178,-844.87,0.00011095,2]
[352325258,1739043042187,-500.0,0.00011095,2]
[352325259,1739043042197,-500.0,0.00011095,2]
[352325260,1739043042209,-750.26,0.00011095,2]
[352325261,1739043042219,-653.79,0.00011095,2]
[352325262,1739043042229,-500.0,0.00011095,2]
[352325263,1739043042239,-500.0,0.00011095,2]
[352325264,1739043042250,-875.46,0.00011095,2]
[352325265,1739043042260,-1360.49,0.00011095,2]
[352325266,1739043042270,-500.0,0.00011095,2]
[352325267,1739043042280,-1673.7,0.00011095,2]
[352325268,1739043042290,-3722.93,0.00011095,2]
[352325269,1739043042300,-1344.73,0.00011095,2]
[352325270,1739043042310,-5376.4,0.00011095,2]
[352325271,1739043042321,-707.8,0.00011095,2]
[352325272,1739043042332,-500.0,0.00011095,2]
[352325273,1739043042343,-659.1,0.00011095,2]
[352325274,1739043042357,-500.0,0.00011095,2]
[352325275,1739043042366,-636.53,0.00011095,2]
[352325276,1739043042376,-500.0,0.00011095,2]
[352325277,1739043042386,-674.31,0.00011095,2]
[352325278,1739043042396,-1349.26,0.00011095,2]
[352325279,1739043042406,-500.0,0.00011095,2]
[352325280,1739043042416,-500.0,0.00011095,2]
[352325281,1739043042427,-500.0,0.00011095,2]
[352325282,1739043042437,-500.0,0.00011095,2]
[352325283,1739043042447,-587.61,0.00011095,2]
[352325284,1739043042457,-500.0,0.00011095,2]
[352325285,1739043042467,-1044.6,0.00011095,2]
[352325286,1739043042476,-500.0,0.00011095,2]
[352325287,1739043042486,-2642.94,0.00011095,2]
[352325288,1739043042496,-500.0,0.00011095,2]
[352325289,1739043042507,-1547.29,0.00011095,2]
[352325290,1739043042517,-500.0,0.00011095,2]
[352325291,1739043042527,-279.76595476,0.00011184,2]
[352325292,1739043042537,-151.0,0.000112,2]
[352325293,1739043042547,-3135.2922908,0.00011231,2]
[352325294,1739043042559,-12241.1143275,0.00011231,2]
[352325295,1739043042571,-68080.06504538,0.00011231,2]
[352325296,1739043042581,-500.0,0.00011232,2]
[352325297,1739043042591,-797.06,0.00011232,2]
[352325298,1739043042600,-500.0,0.00011232,2]
[352325299,1739043042610,-831.62,0.00011232,2]
[352325300,1739043042620,-500.0,0.00011232,2]
[352325301,1739043042629,-500.0,0.00011232,2]
[352325302,1739043042640,-500.0,0.00011232,2]
[352325303,1739043042650,-500.0,0.00011232,2]
[352325304,1739043042659,-576.07,0.00011232,2]
[352325305,1739043042669,-738.94,0.00011232,2]
[352325306,1739043042679,-500.0,0.00011232,2]
[352325307,1739043042689,-500.0,0.00011232,2]
[352325308,1739043042699,-635.18,0.00011232,2]
[352325309,1739043042709,-500.0,0.00011232,2]
[352325310,1739043042718,-500.0,0.00011232,2]
[352325311,1739043042728,-500.0,0.00011232,2]
[352325312,1739043042738,-594.46037337,0.00011232,2]
[352325313,1739043042747,-589.61,0.00011232,2]
[352325314,1739043042757,-500.0,0.00011232,2]
[352325315,1739043042766,-500.0,0.00011232,2]
[352325316,1739043042776,-500.0,0.00011232,2]
[352325317,1739043042786,-459.15725474,0.00011232,2]
[352325318,1739043042795,-500.0,0.00011232,2]
[352325319,1739043042805,-586.66,0.00011232,2]
[352325320,1739043042814,-578.44,0.00011232,2]
[352325321,1739043042824,-500.0,0.00011232,2]
[352325322,1739043042833,-17352.59,0.00011232,2]
[352325323,1739043042843,-500.0,0.00011232,2]
[352325324,1739043042852,-760.46,0.00011232,2]
[352325325,1739043042862,-6970.56,0.00011232,2]
[352325326,1739043042872,-900.89,0.00011232,2]
[352325327,1739043042882,-500.0,0.00011232,2]
[352325328,1739043042892,-599.77,0.00011232,2]
[352325329,1739043042901,-688.34,0.00011232,2]
[352325330,1739043042912,-500.0,0.00011232,2]
[352325331,1739043042921,-580.0,0.00011232,2]
[352325332,1739043042931,-500.0,0.00011232,2]
[352325333,1739043042941,-2406.85,0.00011232,2]
[352325334,1739043042951,-500.0,0.00011232,2]
[352325335,1739043042960,-1843.18,0.00011232,2]
[352325336,1739043042969,-844.87,0.00011232,2]
[352325337,1739043042979,-500.0,0.00011232,2]
[352325338,1739043042989,-500.0,0.00011232,2]
[352325339,1739043043000,-750.26,0.00011232,2]
[352325340,1739043043009,-653.79,0.00011232,2]
[352325342,1739043043019,-500.0,0.00011232,2]
[352325344,1739043043029,-500.0,0.00011232,2]
[352325346,1739043043038,-875.46,0.00011232,2]
[352325348,1739043043049,-1360.49,0.00011232,2]
[352325350,1739043043059,-154.39,0.00011232,2]
[352325352,1739043043068,-1673.7,0.00011232,2]
[352325353,1739043043078,-3722.93,0.00011232,2]
[352325355,1739043043087,-1344.73,0.00011232,2]
[352325357,1739043043097,-5376.4,0.00011232,2]
[352325358,1739043043107,-707.8,0.00011232,2]
[352325359,1739043043117,-500.0,0.00011232,2]
[352325360,1739043043127,-659.1,0.00011232,2]
[352325361,1739043043138,-500.0,0.00011232,2]
[352325362,1739043043151,-636.53,0.00011232,2]
[352325363,1739043043161,-500.0,0.00011232,2]
[352325364,1739043043170,-674.31,0.00011232,2]
[352325365,1739043043180,-1349.26,0.00011232,2]
[352325366,1739043043189,-500.0,0.00011232,2]
[352325367,1739043043199,-500.0,0.00011232,2]
[352325369,1739043043208,-500.0,0.00011232,2]
[352325370,1739043043217,-500.0,0.00011232,2]
[352325371,1739043043227,-587.61,0.00011232,2]
[352325372,1739043043236,-500.0,0.00011232,2]
[352325374,1739043043246,-1044.6,0.00011232,2]
[352325375,1739043043255,-500.0,0.00011232,2]
[352325377,1739043043264,-2642.94,0.00011232,2]
[352325379,1739043043274,-500.0,0.00011232,2]
[352325380,1739043043283,-1547.29,0.00011232,2]
[352325381,1739043043293,-500.0,0.00011232,2]
[352325382,1739043043302,-500.0,0.00011369,2]
[352325383,1739043043312,-797.06,0.00011369,2]
[352325384,1739043043321,-500.0,0.00011369,2]
[352325386,1739043043331,-831.62,0.00011369,2]
[352325387,1739043043341,-500.0,0.00011369,2]
[352325388,1739043043354,-500.0,0.00011369,2]
[352325389,1739043043363,-500.0,0.00011369,2]
[352325390,1739043043373,-500.0,0.00011369,2]
[352325391,1739043043384,-576.07,0.00011369,2]
[352325392,1739043043394,-738.94,0.00011369,2]